Cogmind - Beta 17 *** ADVENTURER MODE // 2026.07.04 @ 00:14:35 Player: smokingfox Result: Destroyed by NB-Y61(R) with Subdweller Laser Performance ------------- Evolutions (0) 0 Regions Visited (2) 400 Robots Destroyed (28) 140 Value Destroyed (578) 578 Prototype IDs (16) 320 Alien Tech Used (0) 0 Bonus (0) 0 TOTAL SCORE: 1438 Bonus ------- None Cogmind --------- Core Integrity 0/250 Matter 284/300 Energy 242/250 System Corruption 0% Temperature Cool (6) Movement Rolling (95) Ox1 Location -10/Subcaves Parts ------- > --- POWER (1) -------- Ion Engine > --- PROPULSION (2) --- Wheel Wheel > --- UTILITY (2) ------ Large Storage Unit Gun Armor > --- WEAPON (2+2) ----- Assault Rifle Battle Rifle (+) Battle Cannon (+) Battle Cannon > --- INVENTORY (15) --- Medium Matter Pod (100) Medium Matter Pod (100) Medium Matter Pod (100) Medium Matter Pod (100) Large Matter Pod (150) Improved Terrain Scanner Makeshift Light Armor Plating Self-contained Transmogrifier Riot Gun Assault Rifle Battle Rifle Subdweller Machine Gun Barrage Gun Peak State ------------ > --- POWER ------------ Ion Engine > --- PROPULSION ------- Wheel Wheel > --- UTILITY ---------- Large Storage Unit Gun Armor > --- WEAPON ----------- Assault Rifle Battle Rifle Battle Cannon Battle Cannon > --- INVENTORY -------- Medium Matter Pod Medium Matter Pod Medium Matter Pod Medium Matter Pod Large Matter Pod Improved Terrain Scanner Makeshift Light Armor Plating Self-contained Transmogrifier Riot Gun Assault Rifle Battle Rifle Subdweller Machine Gun Barrage Gun [Rating: 23] Favorites ----------- Power Ion Engine Engine Ion Engine Power Core Light Nuclear Core Propulsion Wheel Wheel Wheel Utility Signal Interpreter Device Improved Terrain Scanner Storage Large Storage Unit Processor Signal Interpreter Protection Gun Armor Weapon Assault Rifle Energy Gun Small Laser Ballistic Gun Assault Rifle Ballistic Cannon Battle Cannon Build | -11 -10 -10 ------- Run | Yrd Mat Sub Slots Evolved . | . . . Power . | . . . Propulsion . | . . . Utility . | . . . Weapon . | . . . Parts Attached 24 | 7 9 8 Power 4 | 1 2 1 Engine 2 | 1 . 1 Core 2 | . 2 . Reactor . | . . . Propulsion 6 | 2 1 3 Treads . | . . . Leg . | . . . Wheel 6 | 2 1 3 Hover . | . . . Flight . | . . . Utility 6 | 2 3 1 Device 1 | 1 . . Storage 3 | 1 2 . Processor 1 | . 1 . Hackware . | . . . Protection 1 | . . 1 Artifact . | . . . Weapon 8 | 2 3 3 Energy Gun 2 | 2 . . Energy Cannon . | . . . Ballistic Gun 4 | . 3 1 Ballistic Cannon 2 | . . 2 Launcher . | . . . Special Weapon . | . . . Impact Weapon . | . . . Slashing Weapon . | . . . Piercing Weapon . | . . . Special Melee Weapon . | . . . Unidentified Prototypes . | . . . Parts Lost 7 | . 6 1 Power 2 | . 2 . Propulsion 4 | . 3 1 Utility . | . . . Weapon 1 | . 1 . Highest Loss Streak 3 | . 3 1 To Critical Strikes . | . . . Average Backups 11 | 3 9 13 Power . | . 1 . Propulsion 1 | 1 3 . Utility 5 | . 4 6 Weapon 3 | 1 . 4 Tool/Special . | . . . Unused Backups 14 | . 2 12 Power . | . . . Propulsion 1 | . 1 . Utility 6 | . . 6 Weapon 6 | . 1 5 Tool/Special 1 | . . 1 Average Slot Usage (%) 94 | . 98 92 Engine 9 | . 2 13 Core 4 | . 11 . Wheel 22 | . 27 19 Device 1 | . 2 . Storage 13 | . 14 13 Processor 10 | . 11 10 Protection 1 | . . 2 Energy Gun 2 | . 6 . Ballistic Gun 18 | . 21 17 Ballistic Cannon 9 | . . 14 Peak Build Rating 23 | 9 11 23 Average Rating 11 | 7 9 13 On Entrance 4 | . 9 5 Avg Prop Armor Cover (%) . | . . . Naked Turns . | . . . Heaviest Build 39 | 12 29 39 Greatest Support 32 | 32 32 20 Greatest Overweight (x) 9 | . 9 2 Average Overweight (x) 1 | . . 1 Largest Inventory Capacity 15 | 8 15 15 Average Capacity 13 | 7 11 15 Most Carried 15 | 8 11 15 Average Carried 11 | 3 9 13 Final Capacity 15 | 8 15 15 Final Carried 13 | 8 11 13 Class Distribution -------------------- 85% | Mutant 14% | Gunner Dominant Class ---------------- Mutant | -10/Materials Mutant | -10/Subcaves Resources | -11 -10 -10 ----------- Run | Yrd Mat Sub Matter Collected 1494 | 360 649 485 Remotely . | . . . Salvage Created 865 | 241 424 200 Parts 65 | 19 31 15 Haulers Intercepted 1 | . 1 . Recyclers Shooed . | . . . Parts Field Recycled . | . . . Retrieved Matter . | . . . Parts Self-Destructed 4 | . . 4 Prevented . | . . . Parts Restored . | . . . Kills | -11 -10 -10 ------- Run | Yrd Mat Sub Combat Hostiles Destroyed 17 | . 11 6 Guns 14 | . 11 3 Cannons 3 | . . 3 Classes Destroyed 9 | 3 4 2 Worker 2 | 2 . . Tunneler 5 | 5 . . Hauler 1 | . 1 . Recycler 1 | 1 . . Watcher 2 | . 2 . Swarmer 6 | . 6 . Grunt 5 | . 5 . Sentry 1 | . . 1 Subdweller 5 | . . 5 Best Kill Streak 6 | 6 4 2 Combat Bots Only 4 | . 4 2 Max Kills in Single Turn 1 | 1 1 1 Gunslinging . | . . . Exploded . | . . . Melee . | . . . Uniques/NPCs Destroyed . | . . . Combat | -11 -10 -10 -------- Run | Yrd Mat Sub Hostile Shots Fired 111 | . 95 16 Missed 33 | . 27 6 Hits 78 | . 68 10 Projectile 78 | . 68 10 AOE 5 | . 5 . Critical Strikes 1 | . 1 . Damage Taken 883 | . 743 140 Core 251 | . 206 45 Absorbed by Shields . | . . . Ignored by Resistances 264 | . 225 39 Core Remaining (%) 100 | 100 . . Volleys Fired 112 | 16 46 50 Largest 4 | 2 2 4 Hottest 111 | 80 80 111 Shots Fired 232 | 32 92 108 Gun 181 | 32 92 57 Cannon 51 | . . 51 Launcher . | . . . Special . | . . . Kinetic 155 | . 47 108 Thermal 44 | 16 28 . Explosive . | . . . Electromagnetic 33 | 16 17 . Robot Hit Streak 17 | 8 17 11 Robot Miss Streak 3 | 2 3 1 Penetration Max . | . . . Secondary Targets 2 | . 2 . Max Gunslinging Chain 1 | . 1 . Shots Hit Robots 117 | 23 69 25 Core Hits 42 | 9 23 10 Critical Kills 1 | . 1 . Critical Parts Destroyed . | . . . Critical Strikes 1 | . 1 . Destroy 1 | . 1 . Melee Attacks . | . . . Impact . | . . . Slashing . | . . . Piercing . | . . . Sneak Attacks . | . . . Combat Hostiles . | . . . Follow-up Attacks . | . . . Damage Inflicted 1467 | 289 811 367 Guns 1299 | 289 811 199 Cannons 168 | . . 168 Explosions . | . . . Melee . | . . . Ramming . | . . . Kinetic 734 | . 367 367 Thermal 398 | 123 275 . Explosive . | . . . Electromagnetic 335 | 166 169 . Impact . | . . . Slashing . | . . . Piercing . | . . . Highest Corruption . | . . . Average Corruption . | . . . Corruption Purged . | . . . Corruption Blocked . | . . . Overload Shots . | . . . Overflow Damage . | . . . Projectiles . | . . . Explosions . | . . . Melee . | . . . Knockbacks 4 | . . 4 Impact . | . . . Kinetic 4 | . . 4 Secondary . | . . . Self-Inflicted Damage . | . . . Shots . | . . . Rammed . | . . . Targets Rammed . | . . . Kicked . | . . . Crushed . | . . . Highest Temperature 288 | 164 288 . Average Temperature 74 | 58 82 . Received Heat Transfer 366 | . 318 48 Siege Activations . | . . . Martial Activations . | . . . Shielding Activations . | . . . Robots Disrupted . | . . . Combat Hostiles . | . . . Robots Corrupted . | . . . Combat Hostiles . | . . . Parts Fried 4 | 1 3 . Impact Corruptions . | . . . Robots Melted . | . . . Combat Hostiles . | . . . Parts Melted . | . . . Heat Transferred 900 | 275 625 . Parts Sabotaged . | . . . Parts Stolen . | . . . Parts Stripped . | . . . Power Chain Reactions . | . . . Alert | -11 -10 -10 ------- Run | Yrd Mat Sub Maximum Alert Level . | . . . Low Security (%) 100 | 100 100 . Level 1 . | . . . Level 2 . | . . . Level 3 . | . . . Level 4 . | . . . Level 5 . | . . . High Security . | . . . Max Security . | . . . Peak Influence 80 | 10 80 . Initial . | . . . Average 15 | 2 16 . Influence Increases 397 | 40 337 20 Destroy 0b10 Robot/C 240 | . 220 20 Destroy 0b10 Robot/NC 55 | 40 15 . Destroy Leader 46 | . 46 . Successful Hack 11 | . 11 . Lose Combat Pursuer 45 | . 45 . Influence Decreases 397 | 40 337 20 Time Decay 323 | 40 263 20 Lost Part 30 | . 30 . Purge Threat 44 | . 44 . Squads Dispatched . | . . . Investigation . | . . . Extermination . | . . . Reinforcement . | . . . Assault . | . . . Garrison . | . . . Intercept . | . . . Searches Triggered . | . . . Construction Impeded . | . . . Haulers Reinforced . | . . . Active Scanning Responses . | . . . Cargo Convoy Interrupts . | . . . Stealth | -11 -10 -10 --------- Run | Yrd Mat Sub Distress Signals 1 | . 1 . Communications Jammed . | . . . Distress Signals . | . . . Times Spotted 30 | . 20 10 Peak Tracking Total 5 | . 5 4 Tactical Retreats 1 | . 1 . Traps | -11 -10 -10 ------- Run | Yrd Mat Sub Traps Triggered 1 | . 1 . Indirectly . | . . . Trap Hack Attempts . | . . . Triggered . | . . . Disarmed . | . . . Reprogrammed . | . . . Reused . | . . . Traps Extracted . | . . . Installed . | . . . Triggered . | . . . Machines | -11 -10 -10 ---------- Run | Yrd Mat Sub Machines Disabled 1 | . . 1 Max in Single Turn 1 | . . 1 Machines Repaired . | . . . Machines Dismantled . | . . . Machines Sabotaged . | . . . Overloaded Fab Kills . | . . . Hacking | -11 -10 -10 --------- Run | Yrd Mat Sub Machines Accessed 12 | . 8 4 Terminals 8 | . 8 . Fabricators . | . . . Repair Stations . | . . . Recycling Units . | . . . Scanalyzers . | . . . Garrison Access . | . . . Total Hacks 42 | . 26 16 Successful 33 | . 17 16 Failed 9 | . 9 . Catastrophic 1 | . 1 . Database Lockouts . | . . . Manual . | . . . Terminals 26 | . 26 . Fabricators . | . . . Repair Stations . | . . . Recycling Units . | . . . Scanalyzers . | . . . Garrison Access . | . . . Terminal Hacks 33 | . 17 16 Record 23 | . 9 14 Prototype ID Bank 1 | . 1 . Open Door 1 | . . 1 Branch Access Points 1 | . 1 . Emergency Access Points 1 | . 1 . Alert Level 1 | . 1 . Unreport Threat 1 | . 1 . Locate Traps 2 | . 2 . Zone Layout 1 | . 1 . Proto ID Catalog 1 | . . 1 Fabricator Hacks . | . . . Repair Station Hacks . | . . . Recycling Unit Hacks . | . . . Scanalyzer . | . . . Garrison Access Hacks . | . . . Unauthorized Hacks . | . . . Terminals . | . . . Fabricators . | . . . Repair Stations . | . . . Recycling Units . | . . . Scanalyzers . | . . . Garrison Access . | . . . Data Cores Recovered . | . . . Used . | . . . Hacking Detections 8 | . 8 . Full Trace Events 1 | . 1 . Feedback Events . | . . . Feedback Blocked . | . . . Robot Schematics Acquired . | . . . Robots Built . | . . . Authchips . | . . . Time . | . . . Total Robot Build Rating . | . . . Part Schematics Acquired . | . . . Parts Built . | . . . Authchips . | . . . Time . | . . . Total Part Build Rating . | . . . Part Studies Acquired . | . . . Parts Repaired . | . . . Time . | . . . Parts Recycled . | . . . Recycled Matter . | . . . Retrieved Matter . | . . . Retrieved Components . | . . . Parts Scanalyzed . | . . . Part Schematics Acquired . | . . . Parts Damaged . | . . . Bothacking | -11 -10 -10 ------------ Run | Yrd Mat Sub Used RIF Installer . | . . . Robots Hacked . | . . . Non-combat . | . . . Combat . | . . . Robot Hacks Applied . | . . . Relay Couplers Released . | . . . Fabnet Peak Effective % . | . . . Robots Rewired . | . . . Allies Hacked . | . . . Hacks Repelled . | . . . Allies | -11 -10 -10 -------- Run | Yrd Mat Sub Total Allies . | . . . Largest Group . | . . . Highest-Rated Group . | . . . Highest-Rated Ally . | . . . Total Orders . | . . . Ally Attacks . | . . . Total Damage . | . . . Kills . | . . . Allies Corrupted . | . . . Allies Melted . | . . . Intel | -11 -10 -10 ------- Run | Yrd Mat Sub Active Infowar (turns) 315 | 96 219 . Terrain 315 | 96 219 . Robot Analysis Total . | . . . Derelict Logs Recovered 1 | . . 1 Drone Launches . | . . . Drone Recoveries . | . . . Exploration | -11 -10 -10 ------------- Run | Yrd Mat Sub Turns Passed 3261 | 144 1125 1992 Spaces Moved 2678 | 79 908 1691 Core 11 | 8 3 . Treads . | . . . Legs . | . . . Wheels 2667 | 71 905 1691 Hover . | . . . Flight . | . . . Fastest Speed 50 | 50 90 95 Average Speed 99 | 94 96 102 Slowest Speed 500 | 100 500 110 Overloaded Moves . | . . . Propulsion Burnouts . | . . . Robots Hopped . | . . . Potential Cave-ins . | . . . Cave-ins Triggered . | . . . Exploration Rate (%) 64 | 3 99 90 Regions Visited 2 Branch Regions 1 Pre-discovered Areas 2 | . . 2 Known Exits Taken 1 | . 1 . Unknown Exits Taken 1 | 1 . . Scrap Searched 3 | . . 3 Spaces Dug . | . . . Terrain Destroyed . | . . . Melee . | . . . Projectile . | . . . AOE . | . . . Terrain Rammed . | . . . Walls Destroyed . | . . . Machines Disabled . | . . . Actions | -11 -10 -10 --------- Run | Yrd Mat Sub Total 3046 | 116 1075 1855 Wait 193 | . 98 95 Move 2676 | 78 907 1691 Hop . | . . . Pick Up 33 | 15 8 10 Fast Attach 2 | . 2 . Attach 16 | 7 3 6 Detach . | . . . Swap 6 | . 4 2 Drop 8 | . 7 1 Fire 112 | 16 46 50 Melee . | . . . Ram . | . . . Kick . | . . . Crush . | . . . Escape Stasis . | . . . Rewire . | . . . Trap . | . . . Miscellaneous . | . . . Route ------- -11/Scrapyard -10/Materials (discovered 5 exits: *Mat x3 / *Min / *Sub) -10/Subcaves (discovered 2 exits: *Mat x2) History --------- Turn | Location | Event 15 | -11/Scrapyard | Discovered new exit (range 15) 145 | -11/Scrapyard | Entered Materials 312 | -10/Materials | Build established: Mutant 360 | -10/Materials | Lost 3 parts (1p1n1w) 434 | -10/Materials | Discovered new exit (range 11) 444 | -10/Materials | Identified exit to Materials 658 | -10/Materials | Discovered new exit (range 8) 665 | -10/Materials | Identified exit to Subcaves 738 | -10/Materials | Discovered exit to Materials (range 4) 873 | -10/Materials | Discovered exit to Materials (range 16) 874 | -10/Materials | Core integrity fell below 50% 941 | -10/Materials | Identified exit to Mines 1145 | -10/Materials | Derelicts attacked the area 1270 | -10/Materials | Core integrity fell below 20% 1270 | -10/Materials | Entered Subcaves 1276 | -10/Subcaves | Learned Materials security intel 1299 | -10/Subcaves | Lost 3 parts (1p2n) 1382 | -10/Subcaves | Shifting Twisted Machinery released Battle Cannon 1446 | -10/Subcaves | Visited 4L-MR0's lab 1452 | -10/Subcaves | Found Prototype Device 1458 | -10/Subcaves | Found Gun Armor 1518 | -10/Subcaves | Visited Clippyterm 1521 | -10/Subcaves | Learned 40 Factory zone layouts 1521 | -10/Subcaves | Learned location of Section 7 (-2) 1856 | -10/Subcaves | Learned location of Zion (-7) 1856 | -10/Subcaves | Met a Zionite searching for "candidates" 1873 | -10/Subcaves | Shifting Twisted Machinery released Battle Rifle 1877 | -10/Subcaves | Discovered new exit (range 7) 1882 | -10/Subcaves | Identified exit to Materials 1890 | -10/Subcaves | Shifting Twisted Machinery released Sub. Laser 1905 | -10/Subcaves | Discovered exit to Materials (range 6) 2413 | -10/Subcaves | A swath of the cavern ceiling suddenly collapsed 2543 | -10/Subcaves | Disturbed a concealed Subdweller 2714 | -10/Subcaves | Shifting Twisted Machinery released Mak. Light Armor Plating 2774 | -10/Subcaves | Attached Gun Armor, gained temporary slots: Weapon x2 2798 | -10/Subcaves | Shifting Twisted Machinery released Barrage Gun 3081 | -10/Subcaves | Build established: Gunner 3262 | -10/Subcaves | Destroyed by NB-Y61(R) with Subdweller Laser Last Messages --------------- Acquired 59 matter. Acquired Battle Cannon. Searching scrap... Found Sub. Machine Gun. Found Piercing Trap. Found 57 Matter. Mak. Light Armor Plating falls loose from the Twisted Machinery. Acquired Mak. Light Armor Plating. Discarded Signal Interpreter. Core temporarily expanded with Weapon slot. Barrage Gun falls loose from the Twisted Machinery. Acquired Barrage Gun. Acquired 46 matter. Acquired 15 matter. Z4-Q14(R): "MADSUB!" Z4-Q14(R) destroyed. Acquired 27 matter. NB-Y61(R) knocked back. Map ----- +----------------------------------------------------+ | ???????????????????????????????????????????????#?? | | ??????????????????????????????????????????? ??## ? | | ??????????????????????????????????????????? ## | | ?????????????????????????????????????????? | | ??????????????????????????????????????????? | | ???????????????????????????????????????????? | | ????????????????????????????????????????? ??# | | ???????????????????????????????????????? ## | | ???????????????????????????????????????? | | ????????????????????????????????????????# | | ????????????????????????????????????????# | | ????????????????????????????????????????# | | ??????????????????????????????????????? | | ??????????????????????????????????????? | | ???????????????????????????????????????? | | ???????????????????????????????????????? ### | | ????????????????????????????????????????????## | | ???????????????????????????####???????###???# | | ???????????????????????????# ##?????## ##??# | | ?##?????????????#??###?????# #????## ##?# | | # #????????????## # ###### #???## ### | | #????????????# ## ##??## | | #??????????# # ##??# | | " #??????????# ###??# ## #### ### | | "##?????????????????## ## ##?### | | ##??????????????????# R% @ ##????# | | ????????????????????## # # ## #????## | | ????????????????????# ####### ##???# | | ????????????????????# #?????#### #???# # | | ???????????????????# #????????# ##???#### | | ???????????????????# ????????## ####?????? | | ??????????????????? ???????### #### ##????? | | ??????????????????## ??????## ##?# ##???# | | ???????????????????## ??????# #??# ##### | | ????????????????????# ^?????# ##?## | | ????????????????????# ?????######??# | | ???????????????????? ?????????????# ##### | | ???????????????????? ?????????????## #???? | | ???????????????????? ####???????????????######???? | | ?????????????????????????????????????????????????? | | ?????????????????????????????????????????????????? | | ?????????????????????????????????????????????????? | | ?????????????????????????????????????????????????? | | ?????????????????????????????????????????????????? | | ?????????????????????????????????????????????????? | | ?????????????????????????????????????????????????? | | ?????????????????????????????????????????????????? | | ?????????????????????????????????????????????????? | | ?????????????????????????????????????????????????? | | ?????????????????????????????????????????????????? | +----------------------------------------------------+ Best States ------------- Heat Dissipation 25 Energy Generation 14 Energy Capacity 250 Matter Stores 300 Matter Capacity 300 Sight Range 16 Terrain Scan Range 16 Terrain Scan Density 10 Armor Coverage 60 Resistance: KI 20 Resistance: TH 20 Resistance: EX 20 Resistance: EM 20 Resistance: I 20 Resistance: S 20 Resistance: P 20 Evasion (%) 50 Offensive Hacking 10 Item Schematics ----------------- None Robot Schematics ------------------ None Fabricated ------------ Nothing Repaired ---------- Nothing Studied --------- None Alien Tech Used ----------------- None Achievements -------------- None Challenges ------------ None Game ------ Seed TiamatAntimatterRedirector Manual? 0 Play Time 00:23:46 Cumulative 40.7 hours Start 2026.07.03 @ 19:57:22 End 2026.07.04 @ 00:14:35 Sessions 2 Manual Loads 0 Difficulty Adventurer Special Mode None Game No. 56 Rogue 7 Adventurer 49 Explorer 0 Win Type - Total 0 Types 0/0/0/0/0/0/0/0/0/0 Lore% 50 Gallery% 31 Achievement% 27 Wizard Run 0 Options --------- Layout 1 ASCII 0 Keyboard 0 Movement Mouse Keybinds 0 Fullscreen 1 Font 48/Smallcaps Map View 50x35 Zoom Use 0% Tactical HUD 0 Map Filters NONE Filters NONE Steam 1 RUN: e9a35d3a-96b3-49eb-ae00-ca3a700ed4d0